bitfinex/quotes_ETHUSD_20230110
["timestamp","ask_amount","ask_price","bid_price","bid_amount"]
[1673309497655,1.1341058,1322.1,1322.0,42.21838974]
[1673309497863,1.1341058,1322.1,1322.0,45.03365557]
[1673309498125,1.1341058,1322.1,1322.0,45.04206965]
[1673309498338,2.26790946,1322.1,1322.0,45.04206965]
[1673309498497,2.26773384,1322.1,1322.0,42.22680382]
[1673309498709,1.1341058,1322.1,1322.0,42.22680382]
[1673309498968,2.26770905,1322.1,1322.0,42.22680382]
[1673309499133,1.1341058,1322.1,1322.0,42.22680382]
[1673309499344,2.26770847,1322.1,1322.0,42.07680382]
[1673309499597,1.1341058,1322.1,1322.0,42.07680382]
[1673309499807,2.26770898,1322.1,1322.0,42.07680382]
[1673309500126,1.1341058,1322.1,1322.0,44.89205977]
[1673309500634,1.1341058,1322.1,1322.0,42.07680382]
[1673309501018,2.26770332,1322.1,1322.0,42.07680382]
[1673309501485,2.26770332,1322.1,1322.0,40.19995509]
[1673309501702,2.26770332,1322.1,1322.0,42.07684313]
[1673309501875,2.26770332,1322.1,1322.0,40.19995509]
[1673309504509,2.26770332,1322.1,1322.0,42.0767984]
[1673309504510,1.1341058,1322.1,1322.0,42.0767984]
[1673309504782,2.83421348,1322.3,1322.0,49.56272549]
[1673309504925,0.012,1322.2,1322.1,17.51953422]
[1673309505288,0.012,1322.2,1322.1,46.71969832]
[1673309505657,1.13303138,1322.3,1322.1,46.71969832]
[1673309505868,1.13303138,1322.3,1322.2,3.79766064]
[1673309506129,1.13303138,1322.3,1322.2,29.48711064]
[1673309506328,1.13303138,1322.3,1322.2,29.55311064]
[1673309506538,1.13303138,1322.3,1322.2,34.15909411]
[1673309508872,2.94673236,1322.4,1322.2,34.15909411]
[1673309509018,2.94673236,1322.4,1322.3,3.79766064]
[1673309509235,1.81370098,1322.4,1322.3,18.92282064]
[1673309509439,1.81370098,1322.4,1322.3,29.96719605]
[1673309510501,2.94568664,1322.4,1322.3,29.96719605]
[1673309513902,1.24450454,1322.4,1322.3,29.96719605]
[1673309514059,1.24450454,1322.4,1322.3,37.52977605]
[1673309514274,0.11251888,1322.4,1322.3,37.52977605]
[1673309515165,0.11251888,1322.4,1322.3,44.05959589]
[1673309515330,0.11251888,1322.4,1322.3,45.28559589]
[1673309521357,0.11251888,1322.4,1322.3,41.75577605]
[1673309521579,0.11251888,1322.4,1322.3,45.28559589]
[1673309524790,0.10463686,1322.5,1322.4,2.5]
[1673309525018,0.10463686,1322.5,1322.4,36.76222023]
[1673309525238,0.10463686,1322.5,1322.4,36.82822023]
[1673309526399,0.10463686,1322.5,1322.4,47.92004007]
[1673309527018,0.10463686,1322.5,1322.4,44.39022023]
[1673309529826,0.10463686,1322.5,1322.4,47.92004007]
[1673309530305,0.10463686,1322.5,1322.4,41.89022023]
[1673309531113,0.10463686,1322.5,1322.4,11.64222023]
[1673309531328,0.10463686,1322.5,1322.4,6.86366064]
[1673309531502,0.10463686,1322.5,1322.4,29.54966064]
[1673309538300,0.10463686,1322.5,1322.4,37.11166064]
[1673309539364,0.10463686,1322.5,1322.4,14.42566064]
[1673309539631,1.23662252,1322.5,1322.4,6.86366064]
[1673309540214,10.49923462,1322.5,1322.4,6.86366064]
[1673309540414,10.56523462,1322.5,1322.4,6.86366064]
[1673309540951,3.00380462,1322.5,1322.4,3.064]
[1673309541164,1.80581896,1322.5,1322.4,3.0]
[1673309541370,2.9373574,1322.5,1322.4,3.0]
[1673309541639,4.07042125,1322.5,1322.4,3.0]
[1673309541786,4.07042125,1322.5,1322.3,3.066]
[1673309541996,1.131632,1322.4,1322.3,6.79766064]
[1673309542247,10.3948141,1322.4,1322.3,0.066]
[1673309542461,2.9911821,1322.4,1322.1,7.56337]
[1673309542787,1.1321455,1322.3,1322.1,7.62937]
[1673309542942,1.1321455,1322.2,1322.1,0.066]
[1673309543154,1.1321455,1322.2,1322.1,0.05]
[1673309543378,1.1321455,1322.2,1321.9,35.84576768]
[1673309543629,1.1321455,1322.2,1322.0,3.79766064]
[1673309544967,2.8333276,1322.2,1321.9,0.066]
[1673309545188,2.8333276,1322.2,1322.0,7.56423]
[1673309545725,2.8333276,1322.2,1322.0,0.066]
[1673309545726,2.3611455,1322.2,1322.0,0.066]
[1673309545935,2.3611455,1322.2,1322.0,10.56424]
[1673309546146,2.3611455,1322.2,1322.0,10.63024]
[1673309546372,4.0623276,1322.2,1322.0,10.63024]
[1673309546533,4.0623276,1322.2,1322.0,3.066]
[1673309546752,4.0623276,1322.2,1322.0,10.56429]
[1673309546937,4.0623276,1322.2,1322.0,10.63029]
[1673309547723,4.0623276,1322.2,1322.0,7.63029]
[1673309548567,4.0623276,1322.2,1322.0,7.62766497]
[1673309549412,4.0623276,1322.2,1322.0,15.19195497]
[1673309549568,2.3611455,1322.2,1322.0,15.19195497]
[1673309549777,2.3611455,1322.2,1322.0,7.62766497]
[1673309552193,2.3611455,1322.2,1322.0,0.066]
[1673309552194,9.9243655,1322.2,1322.0,0.066]
[1673309552449,9.9243655,1322.2,1321.9,18.99302064]
[1673309552450,2.4271455,1322.2,1321.9,18.99302064]
[1673309552660,2.3611455,1322.2,1321.9,18.99302064]
[1673309552980,9.9243755,1322.2,1321.9,18.99302064]
[1673309553192,9.9903755,1322.2,1321.9,18.99302064]
[1673309554506,9.9903755,1322.2,1321.9,15.19536]
[1673309554721,7.56429,1322.0,1321.9,0.066]
[1673309554926,1.363,1322.0,1321.9,0.002]
[1673309555136,23.43493151,1322.0,1321.7,0.066]
[1673309555379,22.27393151,1322.0,1321.6,0.07189595]
[1673309555665,16.70964151,1322.0,1321.6,0.07189595]
[1673309555921,31.83822151,1322.0,1321.6,0.07189595]
[1673309556136,0.57131323,1321.9,1321.6,0.07189595]
[1673309556295,1.224,1321.8,1321.6,0.07189595]
[1673309557082,1.224,1321.8,1321.6,3.07189595]
[1673309557295,0.09756586,1321.8,1321.6,3.07189595]
[1673309558775,15.22867586,1321.8,1321.6,3.07189595]
[1673309559097,16.43473323,1321.7,1321.6,0.07189595]
[1673309559265,16.50073323,1321.7,1321.6,0.07189595]
[1673309560191,8.93472323,1321.7,1321.6,0.07189595]
[1673309560613,17.72573323,1321.7,1321.6,0.07189595]
[1673309561639,12.15972323,1321.7,1321.6,0.07189595]
[1673309563552,10.15972323,1321.7,1321.6,0.07189595]
[1673309565131,2.59371323,1321.7,1321.6,0.07189595]
[1673309565384,2.52771323,1321.7,1321.6,0.07189595]
[1673309566076,0.6336,1321.8,1321.6,7.63847595]
[1673309566289,10.4936,1321.9,1321.6,22.83763595]
[1673309566973,18.05856,1321.9,1321.6,15.27105595]
[1673309568022,25.62352,1321.9,1321.6,15.27105595]
[1673309569117,25.67352,1321.9,1321.6,15.27105595]
[1673309569413,25.62352,1321.9,1321.6,15.27105595]
[1673309570206,33.18848,1321.9,1321.6,7.70447595]
[1673309570419,33.18848,1321.9,1321.6,0.13789595]
[1673309570645,33.18848,1321.9,1321.6,0.07189595]
[1673309570960,40.75344,1321.9,1321.6,0.07189595]
[1673309571338,2.0,1321.8,1321.6,0.07189595]
[1673309571548,7.56601,1321.7,1321.6,0.07189595]
[1673309571787,0.066,1321.7,1321.6,0.07189595]
[1673309572004,22.76342,1321.8,1321.6,0.07189595]
[1673309573478,23.99042,1321.8,1321.6,0.07189595]
[1673309574844,22.76342,1321.8,1321.6,0.07189595]
[1673309580717,22.76342,1321.8,1321.6,0.06836115]
[1673309581517,23.8955655,1321.8,1321.6,0.06836115]
[1673309585555,25.5967476,1321.8,1321.6,0.06836115]
[1673309585712,29.01888213,1321.8,1321.6,0.06836115]
[1673309585925,7.48446213,1321.7,1321.6,0.06836115]
[1673309586163,33.48170727,1321.7,1321.6,1.15e-06]
[1673309587231,30.05957274,1321.7,1321.6,1.15e-06]
[1673309587402,41.24867503,1321.7,1321.6,1.15e-06]
[1673309587612,44.76594215,1321.7,1321.6,1.15e-06]
[1673309587810,41.93241566,1321.7,1321.6,1.15e-06]
[1673309588028,44.76177837,1321.7,1321.6,1.15e-06]
[1673309588269,44.76395455,1321.7,1321.6,1.15e-06]
[1673309589105,47.02609469,1321.7,1321.6,1.15e-06]
[1673309589297,41.24527019,1321.7,1321.6,1.15e-06]
[1673309590239,35.18546941,1321.7,1321.6,1.15e-06]
[1673309591287,37.44760955,1321.7,1321.6,1.15e-06]
[1673309593065,45.01361955,1321.7,1321.6,1.15e-06]
[1673309593527,43.31709337,1321.7,1321.6,1.15e-06]
[1673309594139,43.13193214,1321.7,1321.6,1.15e-06]
[1673309595697,44.83035754,1321.7,1321.6,1.15e-06]
[1673309595913,43.13193214,1321.7,1321.6,1.15e-06]
[1673309596123,44.83035318,1321.7,1321.6,1.15e-06]
[1673309596346,43.13193214,1321.7,1321.6,1.15e-06]
[1673309596576,45.9597578,1321.7,1321.6,1.15e-06]
[1673309597828,43.69761766,1321.7,1321.6,1.15e-06]
[1673309598428,45.96222584,1321.7,1321.6,1.15e-06]
[1673309602684,43.69761766,1321.7,1321.6,1.15e-06]
[1673309604877,42.65377889,1321.7,1321.6,1.15e-06]
[1673309605088,44.91797601,1321.7,1321.6,1.15e-06]
[1673309605491,44.91806106,1321.7,1321.6,1.15e-06]
[1673309605914,42.65377889,1321.7,1321.6,1.15e-06]
[1673309607112,44.91807024,1321.7,1321.6,1.15e-06]
[1673309607517,59.24409189,1321.7,1321.6,1.15e-06]
[1673309609714,51.67808189,1321.7,1321.6,1.15e-06]
[1673309610446,51.90808189,1321.7,1321.6,1.15e-06]
[1673309613287,48.48227734,1321.7,1321.6,1.15e-06]
[1673309613507,47.90777636,1321.7,1321.6,1.15e-06]
[1673309613685,48.48227734,1321.7,1321.6,1.15e-06]
[1673309614106,45.07661387,1321.7,1321.6,1.15e-06]
[1673309614625,44.50891387,1321.7,1321.6,1.15e-06]
[1673309615077,47.91457734,1321.7,1321.6,1.15e-06]
[1673309615809,47.91457734,1321.7,1321.5,0.04416312]
[1673309615810,1.30292995,1321.6,1321.5,0.04416312]
[1673309616011,3.56813441,1321.6,1321.5,0.04416312]
[1673309616222,11.53455056,1321.6,1321.5,0.04416312]
[1673309616432,11.60055056,1321.6,1321.5,0.04416312]
[1673309617260,19.16713056,1321.6,1321.5,0.04416312]
[1673309619542,1.20300572,1321.6,1321.5,22.74561312]
[1673309619843,2.83584187,1321.6,1321.5,3.55836178]
[1673309619992,2.83584187,1321.6,1321.5,3.49236178]
[1673309620445,2.83584187,1321.6,1321.5,0.04416312]
[1673309623099,2.83584187,1321.6,1321.5,7.61131312]
[1673309623307,2.83584187,1321.6,1321.5,7.66331312]
[1673309623506,2.83584187,1321.6,1321.5,15.24446312]
[1673309624589,2.83639993,1321.6,1321.5,15.24446312]
[1673309625226,2.83639993,1321.6,1321.5,22.81161312]
[1673309626252,2.83639993,1321.6,1321.5,25.98028667]
[1673309627919,1.13756378,1321.6,1321.5,25.98028667]
[1673309630386,0.00392995,1321.6,1321.5,25.98028667]
[1673309630703,1.13715094,1321.6,1321.5,25.98028667]
[1673309630872,0.00392995,1321.6,1321.5,25.98028667]
[1673309631281,1.13715403,1321.6,1321.5,25.98028667]
[1673309631491,0.00392995,1321.6,1321.5,25.98028667]
[1673309631764,1.13715452,1321.6,1321.5,25.98028667]
[1673309631921,1.13715505,1321.6,1321.5,25.98028667]
[1673309632123,0.00392995,1321.6,1321.5,25.98028667]
[1673309633329,1.13698953,1321.6,1321.5,25.98028667]
[1673309634543,0.00392995,1321.6,1321.5,25.98028667]
[1673309639102,0.00392995,1321.6,1321.5,25.977621]
[1673309643147,0.00031129,1321.6,1321.5,25.977621]
[1673309643286,1.13337087,1321.6,1321.5,3.276171]
[1673309643651,1.13337087,1321.6,1321.5,18.344471]
[1673309643826,1.13337087,1321.6,1321.5,18.410471]
[1673309644679,0.00031129,1321.6,1321.5,18.410471]
[1673309646799,1.13337087,1321.6,1321.5,18.410471]
[1673309649111,1.13337087,1321.6,1321.5,10.843321]
[1673309652374,1.13337087,1321.6,1321.5,3.276171]
[1673309652590,1.13337087,1321.6,1321.5,3.210171]
[1673309653109,1.13337087,1321.6,1321.5,10.777321]
[1673309653320,1.13337087,1321.6,1321.5,10.843321]
[1673309653490,1.13337087,1321.6,1321.5,3.276171]
[1673309653715,2.83220702,1321.6,1321.5,10.777321]
[1673309653897,2.83220702,1321.6,1321.5,10.843321]
[1673309655060,2.83220702,1321.6,1321.5,7.67464745]
[1673309655383,2.83330535,1321.6,1321.5,0.10749745]
[1673309655612,2.83330535,1321.6,1321.5,0.04149745]
[1673309656105,2.83330535,1321.6,1321.5,7.60864745]
[1673309656316,2.83358601,1321.6,1321.5,0.10749745]
[1673309656684,1.69914744,1321.6,1321.5,0.04149745]
[1673309656891,2.83358609,1321.6,1321.5,0.04149745]
[1673309657106,1.69914744,1321.6,1321.5,0.04149745]
[1673309660961,1.69914744,1321.6,1321.5,7.60864745]
[1673309661221,1.69914744,1321.6,1321.5,7.67464745]
[1673309661697,1.69914744,1321.6,1321.5,15.24179745]
[1673309662058,1.69914744,1321.6,1321.5,19.84532899]
[1673309662644,2.83396366,1321.6,1321.5,19.84532899]
[1673309662852,1.69914744,1321.6,1321.5,19.84532899]
[1673309664154,2.83397775,1321.6,1321.5,19.84532899]
[1673309664473,1.69914744,1321.6,1321.5,21.72301547]
[1673309664820,1.69914744,1321.6,1321.5,19.84532899]
[1673309665160,1.69914744,1321.6,1321.5,21.72301574]
[1673309665699,2.83403882,1321.6,1321.5,21.72298793]
[1673309666378,2.83403882,1321.6,1321.5,17.11945639]
[1673309666552,1.69914744,1321.6,1321.5,17.11945639]
[1673309667375,2.8341123,1321.6,1321.5,17.11945639]
[1673309667583,2.8341123,1321.6,1321.5,17.11549647]
[1673309667812,1.69914744,1321.6,1321.5,17.11549647]
[1673309668245,1.69914744,1321.6,1321.5,21.02666178]
[1673309669271,1.69914744,1321.6,1321.5,19.14900284]
[1673309669467,1.69914744,1321.6,1321.5,21.02669818]
[1673309669679,1.69914744,1321.6,1321.5,21.02669455]
[1673309670331,1.69914744,1321.6,1321.5,24.68267924]
[1673309676604,3.9643519,1321.6,1321.5,24.68267924]
[1673309677076,1.69914744,1321.6,1321.5,17.11552924]
[1673309677492,3.9643519,1321.6,1321.5,17.11552924]
[1673309678714,3.9643519,1321.6,1321.5,15.23783753]
[1673309679063,3.9643519,1321.6,1321.5,7.67068753]
[1673309680707,3.9643519,1321.6,1321.5,15.23783753]
[1673309681996,3.9663519,1321.6,1321.5,15.23583753]
[1673309682183,3.9643519,1321.6,1321.5,15.23783753]
[1673309683762,3.9663519,1321.6,1321.5,15.23583753]
[1673309683967,3.9643519,1321.6,1321.5,15.23783753]
[1673309687375,3.9643519,1321.6,1321.5,7.67068753]
[1673309695238,3.9643519,1321.6,1321.5,15.23783753]
[1673309696293,3.9643519,1321.6,1321.5,22.80498753]
[1673309696504,0.00031129,1321.6,1321.5,24.68266604]
[1673309696720,1.70277312,1321.6,1321.5,27.49912093]
[1673309697049,2.83775441,1321.6,1321.5,27.49912093]
[1673309697259,4.5398772,1321.6,1321.5,27.49912093]
[1673309697525,1.70277685,1321.6,1321.5,27.49912093]
[1673309697658,4.53987737,1321.6,1321.5,27.49912093]
[1673309697873,1.70277685,1321.6,1321.5,27.49912093]
[1673309698104,2.83760973,1321.6,1321.5,27.49912093]
[1673309698307,1.70277685,1321.6,1321.5,27.49912093]
[1673309699177,2.83761146,1321.6,1321.5,27.49912093]
[1673309699332,1.70277685,1321.6,1321.5,27.49912093]
[1673309699898,2.83749956,1321.6,1321.5,27.49912093]
[1673309700110,2.83749994,1321.6,1321.5,27.49912093]
[1673309700320,1.70277685,1321.6,1321.5,27.49917018]
[1673309700536,4.53967441,1321.6,1321.5,7.67068753]
[1673309700758,3.40491539,1321.6,1321.5,7.67068753]
[1673309701068,3.40491539,1321.6,1321.5,15.23783753]
[1673309701644,3.40491539,1321.6,1321.5,7.67068753]
[1673309702843,5.67011985,1321.6,1321.5,7.67068753]
[1673309703056,26.73372131,1321.6,1321.5,0.09964903]
[1673309703245,34.98502866,1321.6,1321.5,0.09964903]
[1673309703461,32.7198242,1321.6,1321.5,0.08564903]
[1673309703671,32.7198242,1321.6,1321.5,0.03364903]
[1673309704115,29.30002243,1321.6,1321.5,0.03364903]
[1673309704930,27.03621685,1321.6,1321.5,0.03364903]
[1673309705229,30.45986722,1321.6,1321.5,0.03364903]
[1673309705446,29.87171127,1321.6,1321.5,0.03364903]
[1673309706688,29.8754245,1321.6,1321.5,0.03364903]
[1673309707348,29.87535017,1321.6,1321.5,0.03364903]
[1673309708535,27.87535017,1321.6,1321.5,0.03364903]
[1673309709209,30.1428403,1321.6,1321.5,0.03364903]
[1673309710266,27.87535017,1321.6,1321.5,0.03364903]
[1673309712721,25.03993008,1321.6,1321.5,0.03364903]
[1673309713568,27.87280829,1321.6,1321.5,0.03364903]
[1673309714362,27.30510829,1321.6,1321.5,0.03364903]
[1673309718710,34.87168829,1321.6,1321.5,0.03364903]
[1673309719092,27.30510829,1321.6,1321.5,0.03364903]
[1673309719513,29.57062341,1321.6,1321.5,0.03364903]
[1673309719978,34.87168829,1321.6,1321.5,0.03364903]
[1673309720154,27.30510829,1321.6,1321.5,0.03364903]
[1673309721466,29.57052793,1321.6,1321.5,0.03364903]
[1673309721972,27.30510829,1321.6,1321.5,0.03364903]
[1673309722863,29.57053747,1321.6,1321.5,0.03364903]
[1673309724384,26.73765926,1321.6,1321.5,0.03364903]
[1673309724596,29.57053747,1321.6,1321.5,0.03364903]
[1673309725112,27.86776062,1321.6,1321.5,0.03364903]
[1673309726287,25.03488241,1321.6,1321.5,0.03364903]
[1673309726862,27.86776062,1321.6,1321.5,0.03364903]
[1673309727492,33.16891144,1321.6,1321.5,0.03087324]
[1673309729142,25.60233144,1321.6,1321.5,0.03087324]
[1673309729933,33.16891144,1321.6,1321.5,0.03087324]
[1673309730192,25.60233144,1321.6,1321.5,0.03087324]
[1673309732265,33.16891144,1321.6,1321.5,0.03087324]
[1673309732474,25.60233144,1321.6,1321.5,0.03087324]
[1673309733509,27.86829823,1321.6,1321.5,0.03087324]
[1673309737008,25.60233144,1321.6,1321.5,0.03087324]
[1673309739557,26.1751167,1321.6,1321.5,0.03087324]
[1673309747594,26.1751167,1321.6,1321.5,0.02750186]
[1673309762864,33.7416967,1321.6,1321.5,0.02750186]
[1673309763068,26.1751167,1321.6,1321.5,0.02750186]
[1673309767872,41.52325031,1321.6,1321.5,0.02750186]
[1673309768011,41.52325031,1321.6,1321.1,8.86065801]
[1673309768012,45.54293832,1321.6,1321.1,0.06359801]
[1673309768222,2.27059115,1321.2,1321.1,0.12559801]
[1673309768471,25.54484894,1321.2,1321.1,0.11559801]
[1673309768691,27.54484894,1321.2,1321.1,0.11159801]
[1673309768910,27.61084894,1321.2,1321.1,0.06159801]
[1673309769641,29.87855996,1321.2,1321.1,0.06159801]
[1673309769803,31.13429996,1321.2,1321.1,0.06159801]
[1673309770014,27.61084894,1321.2,1321.1,0.06159801]
[1673309770432,31.13429996,1321.2,1321.1,0.06159801]
[1673309770636,21.64235014,1321.2,1321.1,1.93983291]
[1673309770851,24.47713902,1321.2,1321.1,0.06159801]
[1673309772165,24.48085225,1321.2,1321.1,0.06159801]
[1673309773299,26.74551238,1321.2,1321.1,0.06159801]
[1673309774332,30.54317302,1321.2,1321.1,0.06159801]
[1673309776585,34.06273354,1321.2,1321.1,0.06159801]
[1673309776758,27.70838414,1321.2,1321.1,0.06159801]
[1673309778233,30.54317302,1321.2,1321.1,0.06159801]
[1673309778657,27.70838414,1321.2,1321.1,0.06159801]
[1673309778871,27.40544031,1321.2,1321.1,0.06159801]
[1673309781629,34.97431031,1321.2,1321.1,0.06159801]
[1673309785259,2.89376124,1321.2,1321.1,0.06159801]
[1673309785509,23.83731507,1321.2,1321.1,0.06159801]
[1673309785696,23.90331507,1321.2,1321.1,0.06159801]
[1673309786011,16.33444507,1321.2,1321.1,0.06159801]
[1673309786220,23.90331507,1321.2,1321.1,0.06159801]
[1673309786884,1.19670507,1321.2,1321.1,0.06159801]
[1673309787100,1.13070507,1321.2,1321.1,0.06159801]
[1673309787564,16.26844507,1321.2,1321.1,0.06159801]
[1673309787780,1.19670507,1321.2,1321.1,0.06159801]
[1673309787990,1.18070507,1321.2,1321.1,0.06159801]
[1673309788256,23.83731507,1321.2,1321.1,0.06159801]
[1673309788422,8.76557507,1321.2,1321.1,0.06159801]
[1673309788782,23.90331507,1321.2,1321.1,0.06159801]
[1673309790230,25.65037124,1321.2,1321.1,0.06159801]
[1673309790454,23.95331507,1321.2,1321.1,0.06159801]
[1673309791447,25.65037124,1321.2,1321.1,0.06159801]
[1673309791666,23.95331507,1321.2,1321.1,0.06159801]
[1673309792086,23.90331507,1321.2,1321.1,0.06159801]
[1673309792641,0.066,1321.2,1321.1,0.06159801]
[1673309792832,0.066,1321.2,1321.1,3.58115853]
[1673309793055,2.82776124,1321.4,1321.1,1.30868141]
[1673309793254,2.82776124,1321.4,1321.2,2.0]
[1673309793464,2.82776124,1321.4,1321.1,12.46361193]
[1673309793766,2.82776124,1321.4,1321.2,1.218]
[1673309794010,1.13070507,1321.4,1321.2,1.218]
[1673309794185,1.13070507,1321.4,1321.2,3.34309819]
[1673309794725,2.82776124,1321.4,1321.2,3.34309819]
[1673309795140,2.82776124,1321.4,1321.2,10.91187819]
[1673309795358,2.82776124,1321.4,1321.2,10.97787819]
[1673309797130,1.13070507,1321.3,1321.2,2.19109819]
[1673309797335,2.82776124,1321.3,1321.1,10.12039801]
[1673309797550,7.56887,1321.2,1321.1,10.12039801]
[1673309797802,16.33444507,1321.2,1321.1,11.14143436]
[1673309798213,16.33444507,1321.2,1321.1,1.14863436]
[1673309798426,16.33444507,1321.2,1321.1,0.06159801]
[1673309799170,15.20374,1321.2,1321.1,0.06159801]
[1673309800170,22.77261,1321.2,1321.1,0.06159801]
[1673309800381,23.90331507,1321.2,1321.1,0.06159801]
[1673309801450,16.33444507,1321.2,1321.1,0.06159801]
[1673309803764,8.76557507,1321.2,1321.1,0.06159801]
[1673309803971,1.19670507,1321.2,1321.1,0.06159801]
[1673309804328,1.13070507,1321.2,1321.1,7.63103801]
[1673309804556,1.13070507,1321.2,1321.1,7.69703801]
[1673309804857,1.13070507,1321.2,1321.1,9.98967436]
[1673309805030,2.82776124,1321.2,1321.1,2.42023436]
[1673309805248,2.82776124,1321.2,1321.1,15.20047801]
[1673309805455,2.82776124,1321.2,1321.1,15.26647801]
[1673309806353,1.13070507,1321.2,1321.1,22.83591801]
[1673309808337,2.82776124,1321.3,1321.1,22.83591801]
[1673309808859,2.82776124,1321.3,1321.1,26.00846636]
[1673309811013,1.13070507,1321.3,1321.1,26.00846636]
[1673309812507,2.82776124,1321.3,1321.1,26.00846636]
[1673309815637,1.13070507,1321.3,1321.1,26.00846636]
[1673309818577,2.82776124,1321.3,1321.1,26.00572167]
[1673309821292,1.13070507,1321.2,1321.1,0.12485332]
[1673309821434,1.13070507,1321.2,1321.1,0.05885332]
[1673309821664,1.13070507,1321.2,1321.1,22.76717332]
[1673309821990,1.13070507,1321.2,1321.1,22.83317332]
[1673309822284,1.69705617,1321.3,1321.1,22.83317332]
[1673309823479,1.69705617,1321.3,1321.1,26.9231372]
[1673309827470,2.83096087,1321.3,1321.1,26.9231372]
[1673309828259,2.83096087,1321.3,1321.1,4.2148172]
[1673309828522,1.69705617,1321.3,1321.1,22.76716332]
[1673309828729,1.69705617,1321.3,1321.1,22.83316332]
[1673309831438,1.69705617,1321.3,1321.2,1.226]
[1673309831641,1.69705617,1321.3,1321.2,3.226]
[1673309831835,1.69705617,1321.3,1321.2,25.93261]
[1673309832042,1.69705617,1321.3,1321.2,29.71325538]
[1673309836822,1.69705617,1321.3,1321.2,27.71325538]
[1673309837081,1.69705617,1321.3,1321.2,23.99861]
[1673309840358,1.69705617,1321.3,1321.2,22.77261]
[1673309840829,9.38091619,1321.4,1321.2,22.77261]
[1673309841050,9.38091619,1321.4,1321.3,1.12418124]
[1673309841273,1.19941619,1321.4,1321.3,33.39738124]
[1673309841572,1.69705617,1321.5,1321.3,37.90080152]
[1673309841573,1.13341619,1321.5,1321.3,37.90080152]
[1673309841738,1.13341619,1321.5,1321.4,1.226]
[1673309841942,6.29818645,1321.6,1321.4,1.226]
[1673309842190,6.29818645,1321.6,1321.5,15.1343]
[1673309842359,5.16477026,1321.6,1321.5,0.066]
[1673309842572,6.29815,1321.6,1321.5,7.56715]
[1673309842942,6.29815,1321.6,1321.5,7.63315]
[1673309843366,4.60109383,1321.6,1321.5,3.764403]
[1673309843701,4.53509383,1321.6,1321.5,24.00045]
[1673309843866,4.53509383,1321.6,1321.5,24.06645]
[1673309844257,4.53509383,1321.6,1321.5,16.4993]
[1673309847611,4.53509383,1321.6,1321.5,7.63315]
[1673309848079,3.40171409,1321.6,1321.5,37.41808984]
[1673309848247,3.40171409,1321.6,1321.5,46.25600121]
[1673309849018,3.40171409,1321.6,1321.5,43.43963716]
[1673309849749,3.40171409,1321.6,1321.5,46.25564388]
[1673309850522,3.40171409,1321.6,1321.5,43.43963716]
[1673309851346,3.40171409,1321.6,1321.5,43.43956564]
[1673309851554,3.40171409,1321.6,1321.5,41.56221848]
[1673309851782,3.40171409,1321.6,1321.5,43.43955037]
[1673309852155,3.40171409,1321.6,1321.5,38.04265796]
[1673309852994,3.40171409,1321.6,1321.5,45.60980796]
[1673309853204,3.40171409,1321.6,1321.5,49.12936848]
[1673309853831,3.40171409,1321.6,1321.5,36.81365796]
[1673309854912,3.40171409,1321.6,1321.5,44.38080796]
[1673309855125,3.40171409,1321.6,1321.5,36.81365796]
[1673309855337,3.40171409,1321.6,1321.5,44.38080796]
[1673309862787,3.39858068,1321.6,1321.5,44.38080796]
[1673309864038,0.066,1321.7,1321.5,53.8201701]
[1673309864267,8.76206699,1321.9,1321.6,20.33356826]
[1673309864446,8.76206699,1321.9,1321.7,37.59760826]
[1673309864656,8.76206699,1321.9,1321.8,6.79766064]
[1673309864915,8.76206699,1321.9,1321.8,29.55998064]
[1673309865543,0.15646699,1321.9,1321.8,30.78998064]
[1673309865706,0.0873962,1321.9,1321.8,30.78998064]
[1673309865915,0.0873962,1321.9,1321.8,34.6255797]
[1673309867417,0.0873962,1321.9,1321.8,42.1910197]
[1673309868019,1e-08,1321.9,1321.8,42.1910197]
[1673309868434,1e-08,1321.9,1321.8,54.95392732]
[1673309868651,1e-08,1321.9,1321.8,130.17466174]
[1673309869925,1e-08,1321.9,1321.8,54.95392732]
[1673309880475,1e-08,1321.9,1321.8,53.72392732]
[1673309880847,0.09046699,1322.1,1321.9,2.0]
[1673309881158,0.09046699,1322.1,1322.0,26.49053064]
[1673309881409,0.09046699,1322.1,1322.0,37.12082064]
[1673309888862,0.09046699,1322.1,1322.0,21.99224064]
[1673309889049,0.09046699,1322.1,1322.0,6.86366064]
[1673309890326,0.09046699,1322.1,1322.0,14.42795064]
[1673309890563,0.09046699,1322.1,1322.0,10.63029]
[1673309890727,0.09046699,1322.1,1322.0,18.19458]
[1673309890937,0.09046699,1322.1,1322.0,25.75887]
[1673309892916,0.09046699,1322.1,1322.0,10.63029]
[1673309894765,1.22384673,1322.1,1322.0,10.63029]
[1673309895146,1.22384673,1322.1,1322.0,3.066]
[1673309895350,1.22384673,1322.1,1322.0,3.0]
[1673309896208,1.22384673,1322.1,1322.0,10.56429]
[1673309896441,1.22384673,1322.1,1322.0,10.63029]
[1673309897884,1.22384673,1322.1,1322.0,18.19458]
[1673309898097,1.22384673,1322.1,1322.0,10.63029]
[1673309899465,1.22384673,1322.1,1322.0,28.334793]
[1673309899807,0.09046699,1322.1,1322.0,20.770503]
[1673309900505,1.22384673,1322.1,1322.0,20.770503]
[1673309901815,1.22384673,1322.1,1322.0,5.641923]
[1673309901987,0.09046699,1322.1,1322.0,5.641923]
[1673309902542,1.22384673,1322.1,1322.0,5.641923]
[1673309904940,2.9209029,1322.1,1322.0,13.206213]
[1673309905330,1.22384673,1322.1,1322.0,13.206213]
[1673309905547,2.9209029,1322.1,1322.0,13.206213]
[1673309906004,2.9209029,1322.1,1322.0,32.13245364]
[1673309906194,2.9209029,1322.1,1322.0,34.00931679]
[1673309906195,1.22384673,1322.1,1322.0,34.00931679]
[1673309906382,1.22384673,1322.1,1322.0,34.00691552]
[1673309906383,1.22395729,1322.1,1322.0,34.00691552]
[1673309906610,1.22395729,1322.1,1322.0,34.00695706]
[1673309907038,1.22395729,1322.1,1322.0,34.00691109]
[1673309907259,0.09046699,1322.1,1322.0,47.92236704]
[1673309907433,9.9346903,1322.2,1322.1,3.13349029]
[1673309907648,1.1994903,1322.2,1322.1,34.841019]
[1673309908013,2.83372575,1322.2,1322.1,34.907019]
[1673309908224,1.1334903,1322.2,1322.1,36.78372382]
[1673309908383,1.1334903,1322.2,1322.1,34.78372382]
[1673309908593,1.1334903,1322.2,1322.1,32.907019]
[1673309909374,1.1334903,1322.2,1322.1,34.78369363]
[1673309909602,2.94186733,1322.3,1322.1,34.78369363]
[1673309909754,2.94186733,1322.3,1322.1,32.907019]
[1673309909964,1.1334903,1322.2,1322.1,32.907019]
[1673309910174,1.80837703,1322.3,1322.1,38.31960463]
[1673309910175,2.94186733,1322.3,1322.1,38.31960463]
[1673309910436,2.94186733,1322.3,1322.2,26.48711064]
[1673309910592,1.24163188,1322.3,1322.2,31.23509682]
[1673309913382,0.10814158,1322.3,1322.2,31.23509682]
[1673309913533,0.10814158,1322.3,1322.2,42.23509682]
[1673309917004,0.10814158,1322.3,1322.2,49.79824682]